Cogmind - Beta 9.1 @@@ ROGUE MODE // 2019.11.10 @ 11:07:14 Player: Rilt Result: Destroyed by G-47 Trooper with Particle Gun Performance ------------- Evolutions (1) 500 Regions Visited (3) 600 Robots Destroyed (30) 150 Value Destroyed (964) 964 Prototype IDs (3) 60 Alien Tech Used (0) 0 Bonus (50) 50 TOTAL SCORE: 2324 Bonus ------- Follower Combat Kills 50 Cogmind --------- Core Integrity 0/400 Matter 210/300 Energy 78/100 System Corruption 7% Temperature Cool (11) Location -9/Storage Parts ------- Power (1) Propulsion (3) Light Treads Light Treads Utility (2) Weapon (3) Inventory (4) High-capacity Storage Unit Improved Targeting Computer Shield Generator Drone Bay (2/2) Peak State ------------ Power Light Ion Engine Propulsion Armored Wheel Armored Wheel Armored Wheel Utility Large Storage Unit Visual Processing Unit Weapon Beam Cannon Improved Light Cannon Improved Light Cannon Inventory Light Ion Engine Light Treads Light Treads Armored Wheel Disposable Heat Sink Large Storage Unit Visual Processing Unit Shield Generator Medium Laser [Rating: 16] Favorites ----------- Power Light Ion Engine Engine Light Ion Engine Propulsion Armored Wheel Treads Light Treads Wheel Armored Wheel Utility Large Storage Unit Device Improved Heat Sink Storage Large Storage Unit Processor Visual Processing Unit Weapon Improved Light Cannon Energy Gun Medium Laser Energy Cannon Beam Cannon Ballistic Gun Assault Rifle Ballistic Cannon Improved Light Cannon Launcher Rocket Launcher Build | -11 -10 -9 -9 ------- Run | Scr Mat Mat Sto Slots Evolved 2 | . . 2 . Power . | . . . . Propulsion 1 | . . 1 . Utility . | . . . . Weapon 1 | . . 1 . Parts Attached 35 | 7 8 16 4 Power 3 | 1 . 2 . Engine 3 | 1 . 2 . Core . | . . . . Reactor . | . . . . Propulsion 13 | 3 3 5 2 Treads 5 | 1 . 2 2 Leg . | . . . . Wheel 8 | 2 3 3 . Hover . | . . . . Flight . | . . . . Utility 5 | 1 2 1 1 Device 1 | . . . 1 Storage 3 | 1 1 1 . Processor 1 | . 1 . . Hackware . | . . . . Protection . | . . . . Artifact . | . . . . Weapon 14 | 2 3 8 1 Energy Gun 2 | 1 . 1 . Energy Cannon 2 | . . 2 . Ballistic Gun 3 | 1 . 2 . Ballistic Cannon 5 | . 3 2 . Launcher 2 | . . 1 1 Special Weapon . | . . . . Impact Weapon . | . . . . Slashing Weapon . | . . . . Piercing Weapon . | . . . . Special Melee Weapon . | . . . . Unidentified Prototypes 1 | . . 1 . Parts Lost 15 | . . 9 6 Power 3 | . . 2 1 Propulsion 4 | . . 2 2 Utility 1 | . . . 1 Weapon 7 | . . 5 2 Highest Loss Streak 5 | . . 4 5 Average Slot Usage (%) 90 | . 98 90 82 Engine 10 | . 14 10 8 Treads 8 | . . 7 20 Wheel 17 | . 28 20 . Device 1 | . . . 7 Storage 11 | . 14 11 11 Processor 9 | . 12 11 2 Energy Gun 2 | . 7 1 . Energy Cannon 5 | . . 5 10 Ballistic Gun 2 | . 7 1 . Ballistic Cannon 17 | . 13 18 18 Launcher 2 | . . 3 2 Naked Turns . | . . . . Heaviest Build 31 | 11 27 30 31 Greatest Support 40 | 26 28 40 40 Greatest Overweight (x) 5 | . . 2 5 Average Overweight (x) . | . . . . Largest Inventory Capacity 10 | 6 10 10 10 Average Capacity 9 | 5 8 10 9 Most Carried 10 | 6 10 10 10 Average Carried 8 | 3 7 8 9 Final Capacity 10 | 6 10 10 4 Final Carried 10 | 4 10 8 4 Class Distribution -------------------- 59% | Mutant 29% | Skirmisher 11% | Gunner Dominant Class ---------------- Mutant | -10/Materials Mutant | -9/Materials Gunner | -9/Storage Resources | -11 -10 -9 -9 ----------- Run | Scr Mat Mat Sto Matter Collected 950 | 234 100 551 65 Remotely . | . . . . Salvage Created 792 | . 100 422 270 Parts 40 | . 5 24 11 Haulers Intercepted . | . . . . Recyclers Shooed . | . . . . Parts Field Recycled . | . . . . Retrieved Matter . | . . . . Parts Self-Destructed . | . . . . Prevented . | . . . . Kills | -11 -10 -9 -9 ------- Run | Scr Mat Mat Sto Combat Hostiles Destroyed 28 | . 3 17 8 Guns 2 | . . 2 . Cannons 24 | . 3 15 6 AOE 2 | . . . 2 Classes Destroyed 7 | . 1 5 1 Builder 1 | . . 1 . Watcher 1 | . . 1 . Swarmer 6 | . . 6 . Grunt 16 | . 3 7 6 Brawler 2 | . . 1 1 Duelist 1 | . . . 1 Sentry 3 | . . 3 . Best Kill Streak 6 | . 2 6 4 Combat Bots Only 6 | . 2 6 4 Max Kills in Single Turn 3 | . 1 2 3 Gunslinging . | . . . . Exploded 2 | . . . 2 Melee . | . . . . Uniques/NPCs Destroyed . | . . . . Combat | -11 -10 -9 -9 -------- Run | Scr Mat Mat Sto Damage Taken 2322 | . 181 1126 1015 Core 475 | . 66 215 194 Absorbed by Shields . | . . . . Core Remaining (%) 86 | 100 73 . . Volleys Fired 92 | . 18 56 18 Largest 3 | . 2 3 3 Hottest 142 | . 78 142 142 Shots Fired 190 | . 35 115 40 Gun 28 | . 7 21 . Cannon 161 | . 28 94 39 Launcher 1 | . . . 1 Special . | . . . . Kinetic 134 | . 32 81 21 Thermal 55 | . 3 34 18 Explosive 1 | . . . 1 Electromagnetic . | . . . . Robot Hit Streak 11 | . 4 10 11 Robot Miss Streak 7 | . 3 7 4 Penetration Max . | . . . . Secondary Targets . | . . . . Shots Hit Robots 104 | . 19 64 21 Core Hits 43 | . 5 26 12 Critical Hits 5 | . . 2 3 Critical Kills 2 | . . 1 1 Critical Parts Destroyed 2 | . . 1 1 Melee Attacks . | . . . . Impact . | . . . . Slashing . | . . . . Piercing . | . . . . Sneak Attacks . | . . . . Combat Hostiles . | . . . . Follow-up Attacks . | . . . . Damage Inflicted 2370 | . 276 1362 732 Guns 180 | . 20 160 . Cannons 2014 | . 256 1202 556 Explosions 176 | . . . 176 Melee . | . . . . Ramming . | . . . . Kinetic 1548 | . 276 1022 250 Thermal 646 | . . 340 306 Explosive 176 | . . . 176 Electromagnetic . | . . . . Impact . | . . . . Slashing . | . . . . Piercing . | . . . . Highest Corruption 7 | . . . 7 Average Corruption 4 | . . . 4 Corruption Purged . | . . . . Effects 12 | . . . 12 Message Errors 2 | . . . 2 Matter Fused 5 | . . . 5 Energy Discharges 1 | . . . 1 Data Loss (minor) 1 | . . . 1 Targeting Errors 2 | . . . 2 Weapon Failures 1 | . . . 1 Overload Shots . | . . . . Overflow Damage 36 | . . 36 . Projectiles 36 | . . 36 . Explosions . | . . . . Melee . | . . . . Knockbacks 20 | . 3 15 2 Impact . | . . . . Kinetic 19 | . 3 14 2 Secondary 1 | . . 1 . Self-Inflicted Damage 29 | . . . 29 Shots 1 | . . . 1 Rammed . | . . . . Targets Rammed . | . . . . Kicked . | . . . . Crushed . | . . . . Highest Temperature 521 | . 169 521 364 Average Temperature 125 | . 60 147 116 Received Heat Transfer 873 | . 105 390 378 Effects 13 | . . 12 1 Shutdowns 2 | . . 2 . Energy Bleed 1 | . . . 1 Interference 3 | . . 3 . Matter Decay 1 | . . 1 . Short Circuit 1 | . . 1 . Damage (minor) 2 | . . 2 . Damage (major) 3 | . . 3 . Siege Activations . | . . . . Robots Corrupted . | . . . . Combat Hostiles . | . . . . Parts Fried . | . . . . Impact Corruptions . | . . . . Robots Melted . | . . . . Combat Hostiles . | . . . . Parts Melted 1 | . . 1 . Heat Transferred 1313 | . . 814 499 Parts Sabotaged . | . . . . Parts Stolen . | . . . . Parts Stripped . | . . . . Power Chain Reactions . | . . . . Missiles Intercepted . | . . . . Alert | -11 -10 -9 -9 ------- Run | Scr Mat Mat Sto Peak Influence 318 | . 163 318 317 Average Influence 157 | . 49 199 202 Maximum Alert Level 1 | . . 1 1 Low Security (%) 60 | . . . . Level 1 39 | . . . . Level 2 . | . . . . Level 3 . | . . . . Level 4 . | . . . . Level 5 . | . . . . High Security . | . . . . Max Security . | . . . . Squads Dispatched 4 | . 1 1 2 Investigation 1 | . . 1 . Extermination . | . . . . Reinforcement 1 | . 1 . . Assault 2 | . . . 2 Garrison . | . . . . Intercept . | . . . . Construction Impeded . | . . . . Haulers Reinforced . | . . . . Stealth | -11 -10 -9 -9 --------- Run | Scr Mat Mat Sto Distress Signals . | . . . . Communications Jammed . | . . . . Distress Signals . | . . . . Times Spotted 47 | . 8 20 19 Peak Tracking Total 11 | . 2 6 11 Tactical Retreats . | . . . . Traps | -11 -10 -9 -9 ------- Run | Scr Mat Mat Sto Traps Triggered 4 | . 1 1 2 Indirectly . | . . . . Trap Hack Attempts . | . . . . Triggered . | . . . . Disarmed 3 | . 3 . . Reprogrammed . | . . . . Reused . | . . . . Traps Extracted . | . . . . Installed . | . . . . Triggered . | . . . . Machines | -11 -10 -9 -9 ---------- Run | Scr Mat Mat Sto Machines Disabled 2 | . 1 . 1 Max in Single Turn 1 | . 1 . 1 Machines Sabotaged . | . . . . Garrisons Compromised . | . . . . Overloaded Fab Kills . | . . . . Fab Network Shutdowns . | . . . . Hacking | -11 -10 -9 -9 --------- Run | Scr Mat Mat Sto Machines Accessed 6 | . 2 2 2 Terminals 5 | . 2 2 1 Fabricators . | . . . . Repair Stations . | . . . . Recycling Units 1 | . . . 1 Scanalyzers . | . . . . Garrison Access . | . . . . Total Hacks 11 | . 4 4 3 Successful 9 | . 3 3 3 Failed 2 | . 1 1 . Catastrophic . | . . . . Database Lockouts . | . . . . Manual . | . . . . Terminals 9 | . 4 4 1 Fabricators . | . . . . Repair Stations . | . . . . Recycling Units 2 | . . . 2 Scanalyzers . | . . . . Garrison Access . | . . . . Terminal Hacks 7 | . 3 3 1 Record 1 | . . 1 . Prototype ID Bank 1 | . . 1 . Open Door 1 | . . . 1 Locate Traps 2 | . 2 . . Disarm Traps 1 | . 1 . . Hauler Manifests 1 | . . 1 . Fabricator Hacks . | . . . . Repair Station Hacks . | . . . . Recycling Unit Hacks 2 | . . . 2 Report Inventory 1 | . . . 1 Retrieve Components 1 | . . . 1 Scanalyzer . | . . . . Garrison Access Hacks . | . . . . Unauthorized Hacks . | . . . . Terminals . | . . . . Fabricators . | . . . . Repair Stations . | . . . . Recycling Units . | . . . . Scanalyzers . | . . . . Garrison Access . | . . . . Data Cores Recovered . | . . . . Used . | . . . . Hacking Detections . | . . . . Full Trace Events . | . . . . Feedback Events . | . . . . Feedback Blocked . | . . . . Robot Schematics Acquired . | . . . . Robots Built . | . . . . Matter . | . . . . Time . | . . . . Total Robot Build Rating . | . . . . Part Schematics Acquired . | . . . . Parts Built . | . . . . Matter . | . . . . Time . | . . . . Total Part Build Rating . | . . . . Parts Repaired . | . . . . Time . | . . . . Parts Recycled . | . . . . Recycled Matter . | . . . . Retrieved Matter . | . . . . Retrieved Components 3 | . . . 3 Parts Scanalyzed . | . . . . Part Schematics Acquired . | . . . . Parts Damaged . | . . . . Bothacking | -11 -10 -9 -9 ------------ Run | Scr Mat Mat Sto Used RIF Installer . | . . . . Robots Hacked . | . . . . Non-combat . | . . . . Combat . | . . . . Robot Hacks Applied . | . . . . Relay Couplers Released . | . . . . Robots Rewired . | . . . . Allies Hacked . | . . . . Hacks Repelled . | . . . . Allies | -11 -10 -9 -9 -------- Run | Scr Mat Mat Sto Total Allies 2 | . . . 2 Largest Group 2 | . . . 2 Highest-Rated Group 62 | . . . 62 Highest-Rated Ally 31 | . . . 31 Total Orders . | . . . . Ally Attacks 15 | . . . 15 Total Damage 258 | . . . 258 Kills 3 | . . . 3 Allies Corrupted 1 | . . . 1 Allies Melted . | . . . . Intel | -11 -10 -9 -9 ------- Run | Scr Mat Mat Sto Robot Analysis Total . | . . . . Derelict Logs Recovered . | . . . . Drone Launches . | . . . . Drone Recoveries . | . . . . Exploration | -11 -10 -9 -9 ------------- Run | Scr Mat Mat Sto Turns Passed 1428 | 58 334 731 305 Spaces Moved 900 | 47 247 460 146 Core 8 | 5 . . 3 Treads 284 | . . 141 143 Legs . | . . . . Wheels 608 | 42 247 319 . Hover . | . . . . Flight . | . . . . Fastest Speed 50 | 50 90 90 160 Average Speed 114 | 87 92 113 162 Slowest Speed 300 | 100 95 160 300 Overloaded Moves . | . . . . Propulsion Burnouts . | . . . . Robots Hopped . | . . . . Cave-ins Triggered . | . . . . Exploration Rate (%) 23 | 4 31 42 18 Regions Visited 3 Branch Regions 1 Pre-discovered Areas . | . . . . Known Exits Taken . | . . . . Unknown Exits Taken 3 | 1 1 1 . Scrap Searched . | . . . . Spaces Dug . | . . . . Terrain Destroyed 23 | . 4 5 14 Melee . | . . . . Projectile 10 | . 4 5 1 AOE 13 | . . . 13 Actions | -11 -10 -9 -9 --------- Run | Scr Mat Mat Sto Total 1134 | 64 316 573 181 Wait 55 | . 30 24 1 Move 897 | 46 246 459 146 Hop . | . . . . Pick Up 39 | 10 10 13 6 Fast Attach 1 | . 1 . . Attach 23 | 7 1 12 3 Detach 1 | 1 . . . Swap 11 | . 6 4 1 Drop 15 | . 4 5 6 Fire 92 | . 18 56 18 Melee . | . . . . Ram . | . . . . Kick . | . . . . Crush . | . . . . Escape Stasis . | . . . . Rewire . | . . . . Trap . | . . . . Miscellaneous . | . . . . Route ------- -11/Scrapyard -10/Materials -9/Materials (discovered 2 exits: [*Mat] / *Sto) -9/Storage History --------- Turn | Location | Event 20 | -11/Scrapyard | Discovered new exit (range 15) 59 | -11/Scrapyard | Entered Materials 302 | -10/Materials | Build established: Mutant 342 | -10/Materials | Discovered new exit (range 9) 393 | -10/Materials | Entered another Materials area 393 | -9/Materials | Evolved 2 slots: Propulsion x1, Weapon x1 872 | -9/Materials | Core integrity fell below 50% 886 | -9/Materials | Lost 4 parts (1p1n2w) 1007 | -9/Materials | Discovered new exit (range 8) 1076 | -9/Materials | Discovered new exit (range 11) 1124 | -9/Materials | Entered Storage 1281 | -9/Storage | Met a pair of Derelict thieves 1414 | -9/Storage | Core integrity fell below 20% 1429 | -9/Storage | Destroyed by G-47 Trooper with Particle Gun Last Messages --------------- K-01 Serf collects debris. B-36 Bruiser heat damages Lgt. Treads. B-36 Bruiser destroyed. Lgt. Cannon destroyed. Dropped Rocket Launcher. Acquired 15 matter. Lgt. Treads destroyed. 6C7CU0MBAE5J CD#BRK4YLJIKRVA: U1OUYPMKI U-05 Engineer lays Concrete. Adv. Beam Cannon destroyed. U-05 Engineer builds a Wall. K-01 Serf collects debris. Imp. Heat Sink destroyed. System corrupted by crushing effect (+3). U-05 Engineer lays Concrete. U-05 Engineer builds a Wall. K-01 Serf collects debris. Dropped Lrg. Storage Unit. U-05 Engineer lays Concrete. K-01 Serf collects debris. Map ----- +----------------------------------------------------+ | ????????????########### #????????????? | | ??????????### # #????????????? | | ??????????#""! # #????????????? | | ??????????#"Y # #????????????? | | ??????????#""! + #????????????? | | ??????????### # #????????????? | | ????????????# """ """ # #????????????? | | ????????????# """ """ # #????????????? | | ????????????# """ """ # #????????????? | | ????????????### ### #????????????? | | ????????????## # ^^#????????????? | | ????????????## # ^^#????????????? | | ????????????# # #????????????? | | ????????????# #% #????????????? | | ????????????# % +*% #????????????? | | ????????????# #%! #????????????? | | ????????????# # #????????????? | | ????????????# # #????????????? | | ????????????## # ]#????????????? | | ?????????????## ### #????????????? | | ?????????????# # g #????????????? | | ?????????????# # !*#########????? | | ?????????????# """" # [!# #! !!#????? | | ?????????????# ???"" # b# " ! #????? | | ?????????????# ????"" + ; ! !#????? | | ?????????????# "????" # @# " #????? | | ?????????????# ""??" # ##T# ! #????? | | ?????????????# """" + g#### ! !#????? | | ?????????????# #i k#??######????? | | ?????????????##########%| ##???????????? | | ??????????????????????#= #???????????? | | ?????????????????????## #######?????? | | ???????????????????# #ag #! !!#?????? | | ???????????????????## %*u% ! #?????? | | ????????????????????## %g% #!!!!#?????? | | ????????????##########*=[/ ######?????? | | ????????? ]=*%= ##??????????? | | ????????? " " [%*k! ##???????????? | | ????????? "%"%" =%!k #????????????? | | ??????????#################????????????? | | ???????????????????????????????????????? | | ???????????????????????????????????????? | | ???????????????????????????????????????? | | ???????????????????????????????????????? | | ???????????????????????????????????????? | | ???????????????????????????????????????? | | ???????????????????????????????????????? | | ???????????????????????????????????????? | | ???????????????????????????????????????? | | ???????????????????????????????????????? | +----------------------------------------------------+ Best States ------------- Heat Dissipation 42 Energy Generation 10 Energy Capacity 125 Matter Stores 300 Matter Capacity 300 Sight Range 18 Terrain Scan Density 10 Evasion (%) 42 Recoil Reduction 2 Item Schematics ----------------- None Robot Schematics ------------------ None Fabricated ------------ Nothing Alien Tech Used ----------------- None Achievements -------------- None Challenges ------------ None Game ------ Seed LayeredAnalysisShifter Manual? 0 Play Time 00:19:54 Cumulative 6.4 hours Start 2019.11.10 @ 10:48:54 End 2019.11.10 @ 11:07:14 Sessions 1 Manual Loads 0 Difficulty Rogue Special Mode None Game No. 13 Rogue 13 Adventurer 0 Explorer 0 Win Type - Total 0 Types 0/0/0/0/0/0/0 Lore% 12 Gallery% 14 Achievement% 12 Wizard Run 0 Options --------- ASCII 0 Keyboard 0 Movement Mouse Keybinds 0 Fullscreen 1 Font 20/SmallcapsGlow Map View 66x50 Tactical HUD 0 Map Filters NONE Filters NONE Steam 1 RUN: 2eb97ffa-f0b1-417f-ac0c-6e078b0b49dd